Cogmind - Beta 15 *** ADVENTURER MODE // 2025.06.20 @ 13:26:26 // Winter2019/RPGLIKE Player: H_ Result: Self-destructed Performance ------------- Evolutions (0) 0 Regions Visited (4) 800 Robots Destroyed (37) 185 Value Destroyed (934) 934 Prototype IDs (41) 820 Alien Tech Used (0) 0 Bonus (300) 300 TOTAL SCORE: 3039 Bonus ------- Aligned with FarCom 300 Cogmind --------- Core Integrity 466/600 Matter 300/300 Energy 170/170 System Corruption 0% Temperature Cool (0) Movement Flying (32) Location -9/Mines Parts ------- > --- POWER (1) -------- Makeshift Power Source > --- PROPULSION (2) --- VTOL Module VTOL Module > --- UTILITY (3) ------ Structural Scanner Improved Terrain Scanner Cloak of Protection > --- WEAPON (2) ------- Light Assault Rifle Light Assault Rifle > --- INVENTORY (2) ---- VTOL Module Peak State ------------ > --- POWER ------------ Makeshift Power Source > --- PROPULSION ------- VTOL Module VTOL Module > --- UTILITY ---------- Structural Scanner Improved Terrain Scanner Cloak of Protection > --- WEAPON ----------- Light Assault Rifle Light Assault Rifle > --- INVENTORY -------- Light Ion Engine VTOL Module [Rating: 22] Favorites ----------- Power Light Ion Engine Engine Light Ion Engine Propulsion VTOL Module Treads Light Treads Flight Unit VTOL Module Utility Improved Terrain Scanner Device Improved Terrain Scanner Processor Machine Analyzer Weapon Light Assault Rifle Energy Gun EM Pulse Gun Ballistic Gun Light Assault Rifle Special Weapon Mining Laser Special Melee Weapon Datajack Build | -11 -10 -10 -10 -9 ------- Run | Yrd Mat Min Exi Min Slots Evolved 4 | 3 . . . 1 Power . | . . . . . Propulsion 1 | 1 . . . . Utility 2 | 1 . . . 1 Weapon 1 | 1 . . . . Parts Attached 23 | 7 10 4 . 2 Power 3 | 1 . 1 . 1 Engine 3 | 1 . 1 . 1 Core . | . . . . . Reactor . | . . . . . Propulsion 6 | 2 4 . . . Treads 3 | 2 1 . . . Leg . | . . . . . Wheel . | . . . . . Hover . | . . . . . Flight 3 | . 3 . . . Utility 6 | 2 2 1 . 1 Device 5 | 2 1 1 . 1 Storage . | . . . . . Processor 1 | . 1 . . . Hackware . | . . . . . Protection . | . . . . . Artifact . | . . . . . Weapon 8 | 2 4 2 . . Energy Gun 2 | . 2 . . . Energy Cannon . | . . . . . Ballistic Gun 4 | 2 1 1 . . Ballistic Cannon . | . . . . . Launcher . | . . . . . Special Weapon 1 | . 1 . . . Impact Weapon . | . . . . . Slashing Weapon . | . . . . . Piercing Weapon . | . . . . . Special Melee Weapon 1 | . . 1 . . Unidentified Prototypes 1 | . 1 . . . Parts Lost 1 | . . 1 . . Power 1 | . . 1 . . Propulsion . | . . . . . Utility . | . . . . . Weapon . | . . . . . Highest Loss Streak 1 | . . 1 . . To Critical Strikes . | . . . . . Average Backups 1 | . 1 1 2 1 Power . | . . . . . Propulsion . | . . 1 1 1 Utility . | . . . . . Weapon . | . . . . . Tool/Special . | . . . . . Unused Backups 3 | . 1 2 . . Power . | . . . . . Propulsion 1 | . 1 . . . Utility . | . . . . . Weapon 2 | . . 2 . . Tool/Special . | . . . . . Average Slot Usage (%) 99 | . 100 99 100 100 Engine 13 | . 14 13 14 12 Treads 7 | . 15 . . . Flight 20 | . 12 28 28 25 Device 26 | . 24 28 28 34 Processor 1 | . 3 . . . Ballistic Gun 26 | . 27 27 21 25 Special Melee Weapon 1 | . . . 6 . Peak Build Rating 22 | 9 15 11 12 22 Average Rating 10 | 5 10 10 11 20 On Entrance 8 | . 9 11 11 12 Naked Turns . | . . . . . Heaviest Build 16 | 8 8 7 7 16 Greatest Support 45 | 45 45 13 13 18 Greatest Overweight (x) . | . . . . . Average Overweight (x) . | . . . . . Largest Inventory Capacity 2 | 2 2 2 2 2 Average Capacity 2 | 2 2 2 2 2 Most Carried 2 | 2 2 2 2 2 Average Carried 1 | . 1 1 2 1 Final Capacity 2 | 2 2 2 2 2 Final Carried 2 | . 2 2 2 1 Class Distribution -------------------- 70% | Hacker-Scout 29% | Hacker-Mutant Dominant Class ---------------- Hacker-Mutant | -10/Materials Hacker-Scout | -10/Mines Hacker-Scout | -10/Exiles Hacker-Scout | -9/Mines Resources | -11 -10 -10 -10 -9 ----------- Run | Yrd Mat Min Exi Min Matter Collected 754 | 282 263 151 . 58 Remotely . | . . . . . Salvage Created 1291 | 40 719 399 . 133 Parts 74 | 8 30 29 . 7 Haulers Intercepted 2 | . 2 . . . Recyclers Shooed 2 | 1 . 1 . . Parts Field Recycled . | . . . . . Retrieved Matter . | . . . . . Parts Self-Destructed . | . . . . . Prevented . | . . . . . Kills | -11 -10 -10 -10 -9 ------- Run | Yrd Mat Min Exi Min Combat Hostiles Destroyed 26 | . 13 11 . 2 Guns 25 | . 12 11 . 2 AOE 1 | . 1 . . . Classes Destroyed 8 | 1 6 1 . . Worker 1 | . 1 . . . Tunneler 3 | 2 . 1 . . Hauler 2 | . 2 . . . Recycler 1 | . . 1 . . Mechanic 1 | . 1 . . . Watcher 3 | . 3 . . . Swarmer 6 | . 3 3 . . Grunt 20 | . 10 8 . 2 Best Kill Streak 7 | 1 6 7 . 2 Combat Bots Only 7 | . 4 7 . 2 Max Kills in Single Turn 1 | 1 1 1 . 1 Gunslinging . | . . . . . Exploded 1 | . 1 . . . Melee . | . . . . . Uniques/NPCs Destroyed . | . . . . . Combat | -11 -10 -10 -10 -9 -------- Run | Yrd Mat Min Exi Min Hostile Shots Fired 162 | . 72 71 . 19 Missed 56 | . 28 24 . 4 Hits 106 | . 44 47 . 15 Projectile 106 | . 44 47 . 15 Critical Strikes 1 | . . 1 . . Damage Taken 961 | . 350 454 . 157 Core 786 | . 284 377 . 125 Absorbed by Shields . | . . . . . Redirected to Core 554 | . 207 244 . 103 Ignored by Resistances 301 | . 109 143 . 49 Core Remaining (%) 100 | 100 . . . . Volleys Fired 128 | 3 63 53 . 9 Largest 2 | 2 2 2 . 2 Hottest 100 | 40 100 40 . 40 Shots Fired 255 | 6 125 106 . 18 Gun 254 | 6 124 106 . 18 Cannon . | . . . . . Launcher . | . . . . . Special 1 | . 1 . . . Kinetic 243 | 6 113 106 . 18 Thermal 1 | . 1 . . . Explosive . | . . . . . Electromagnetic 11 | . 11 . . . Robot Hit Streak 37 | 4 20 24 . 37 Robot Miss Streak 2 | . 2 2 . . Penetration Max . | . . . . . Secondary Targets 7 | . 5 1 . 1 Max Gunslinging Chain 1 | . 1 1 . 1 Shots Hit Robots 219 | 4 105 90 3 17 Core Hits 83 | 2 41 33 . 7 Critical Kills . | . . . . . Critical Parts Destroyed 2 | . 2 . . . Critical Strikes 2 | . 2 . . . Destroy 2 | . 2 . . . Melee Attacks 4 | . . 1 3 . Impact . | . . . . . Slashing . | . . . . . Piercing . | . . . . . Sneak Attacks 4 | . . 1 3 . Combat Hostiles . | . . . . . Follow-up Attacks . | . . . . . Damage Inflicted 1870 | 42 966 731 . 131 Guns 1796 | 42 892 731 . 131 Cannons . | . . . . . Explosions 74 | . 74 . . . Melee . | . . . . . Ramming . | . . . . . Kinetic 1673 | 42 769 731 . 131 Thermal 74 | . 74 . . . Explosive . | . . . . . Electromagnetic 123 | . 123 . . . Impact . | . . . . . Slashing . | . . . . . Piercing . | . . . . . Highest Corruption . | . . . . . Average Corruption . | . . . . . Corruption Purged . | . . . . . Corruption Blocked . | . . . . . Overload Shots . | . . . . . Overflow Damage . | . . . . . Projectiles . | . . . . . Explosions . | . . . . . Melee . | . . . . . Knockbacks . | . . . . . Impact . | . . . . . Kinetic . | . . . . . Secondary . | . . . . . Self-Inflicted Damage . | . . . . . Shots . | . . . . . Rammed 1 | . 1 . . . Targets Rammed 1 | . 1 . . . Kicked . | . . . . . Crushed . | . . . . . Highest Temperature 162 | . 162 11 . . Average Temperature 58 | . 59 11 . . Received Heat Transfer 627 | . 195 318 . 114 Siege Activations . | . . . . . Martial Activations . | . . . . . Shielding Activations . | . . . . . Robots Disrupted . | . . . . . Combat Hostiles . | . . . . . Robots Corrupted . | . . . . . Combat Hostiles . | . . . . . Parts Fried . | . . . . . Impact Corruptions . | . . . . . Robots Melted . | . . . . . Combat Hostiles . | . . . . . Parts Melted . | . . . . . Heat Transferred 100 | . 100 . . . Parts Sabotaged . | . . . . . Parts Stolen . | . . . . . Parts Stripped . | . . . . . Power Chain Reactions 1 | . 1 . . . Alert | -11 -10 -10 -10 -9 ------- Run | Yrd Mat Min Exi Min Maximum Alert Level . | . . . . . Low Security (%) 100 | 100 100 100 . 100 Level 1 . | . . . . . Level 2 . | . . . . . Level 3 . | . . . . . Level 4 . | . . . . . Level 5 . | . . . . . High Security . | . . . . . Max Security . | . . . . . Peak Influence 195 | 5 163 195 . 40 Initial 18 | . . 18 . . Average 75 | . 70 106 . 23 Influence Increases 833 | 10 448 325 . 50 Destroy 0b10 Robot/C 520 | . 260 220 . 40 Destroy 0b10 Robot/NC 55 | 10 35 10 . . Destroy Leader 120 | . 60 50 . 10 Successful Hack 20 | . 20 . . . Select Force Hacks 60 | . 60 . . . Disable Machine 9 | . 9 . . . Destroy Structure 4 | . 4 . . . Lose Combat Pursuer 45 | . . 45 . . Influence Decreases 803 | 10 390 268 115 20 Entered New Map 155 | . . 40 115 . Time Decay 638 | 10 390 218 . 20 Lost Part 10 | . . 10 . . Squads Dispatched 3 | . 3 . . . Investigation 3 | . 3 . . . Extermination . | . . . . . Reinforcement . | . . . . . Assault . | . . . . . Garrison . | . . . . . Intercept . | . . . . . Searches Triggered . | . . . . . Construction Impeded . | . . . . . Haulers Reinforced . | . . . . . Active Scanning Responses . | . . . . . Cargo Convoy Interrupts . | . . . . . Stealth | -11 -10 -10 -10 -9 --------- Run | Yrd Mat Min Exi Min Distress Signals . | . . . . . Communications Jammed . | . . . . . Distress Signals . | . . . . . Times Spotted 33 | . 17 14 . 2 Peak Tracking Total 5 | . 5 5 . 2 Tactical Retreats 2 | . . 2 . . Traps | -11 -10 -10 -10 -9 ------- Run | Yrd Mat Min Exi Min Traps Triggered 1 | . 1 . . . Indirectly . | . . . . . Trap Hack Attempts . | . . . . . Triggered . | . . . . . Disarmed 8 | . 8 . . . Reprogrammed . | . . . . . Reused . | . . . . . Traps Extracted . | . . . . . Installed . | . . . . . Triggered . | . . . . . Machines | -11 -10 -10 -10 -9 ---------- Run | Yrd Mat Min Exi Min Machines Disabled 1 | . 1 . . . Max in Single Turn 1 | . 1 . . . Machines Repaired . | . . . . . Machines Dismantled . | . . . . . Machines Sabotaged . | . . . . . Overloaded Fab Kills . | . . . . . Hacking | -11 -10 -10 -10 -9 --------- Run | Yrd Mat Min Exi Min Machines Accessed 12 | . 11 . 1 . Terminals 8 | . 8 . . . Fabricators . | . . . . . Repair Stations 1 | . 1 . . . Recycling Units 2 | . 2 . . . Scanalyzers . | . . . . . Garrison Access . | . . . . . Total Hacks 51 | . 50 . 1 . Successful 44 | . 43 . 1 . Failed 6 | . 6 . . . Catastrophic . | . . . . . Database Lockouts 1 | . 1 . . . Manual 36 | . 34 . 2 . Terminals 39 | . 39 . . . Fabricators . | . . . . . Repair Stations 2 | . 2 . . . Recycling Units 9 | . 9 . . . Scanalyzers . | . . . . . Garrison Access . | . . . . . Terminal Hacks 23 | . 22 . 1 . Robot Analysis 7 | . 7 . . . Prototype ID Bank 4 | . 4 . . . Branch Access Points 1 | . 1 . . . Emergency Access Points 1 | . 1 . . . Terminal Index 1 | . 1 . . . Recycling Unit Index 1 | . 1 . . . Locate Traps 2 | . 2 . . . Disarm Traps 2 | . 2 . . . Registered Components 1 | . 1 . . . Zone Layout 2 | . 2 . . . Proto ID Catalog 1 | . . . 1 . Fabricator Hacks . | . . . . . Repair Station Hacks . | . . . . . Recycling Unit Hacks 3 | . 3 . . . Retrieve Matter 1 | . 1 . . . Retrieve Components 2 | . 2 . . . Scanalyzer . | . . . . . Garrison Access Hacks . | . . . . . Unauthorized Hacks 18 | . 18 . . . Terminals 11 | . 11 . . . Botnet 6 | . 6 . . . Skim 5 | . 5 . . . Fabricators . | . . . . . Repair Stations 1 | . 1 . . . Mechanics 1 | . 1 . . . Recycling Units 6 | . 6 . . . Monitor 1 | . 1 . . . Reject 1 | . 1 . . . Recyclers 1 | . 1 . . . Mask 1 | . 1 . . . Tunnel 2 | . 2 . . . Scanalyzers . | . . . . . Garrison Access . | . . . . . Data Cores Recovered . | . . . . . Used . | . . . . . Hacking Detections 9 | . 9 . . . Full Trace Events . | . . . . . Feedback Events . | . . . . . Feedback Blocked . | . . . . . Robot Schematics Acquired . | . . . . . Robots Built . | . . . . . Authchips . | . . . . . Time . | . . . . . Total Robot Build Rating . | . . . . . Part Schematics Acquired . | . . . . . Parts Built . | . . . . . Authchips . | . . . . . Time . | . . . . . Total Part Build Rating . | . . . . . Parts Repaired . | . . . . . Time . | . . . . . Parts Recycled . | . . . . . Recycled Matter . | . . . . . Retrieved Matter . | . . . . . Retrieved Components 8 | . 8 . . . Parts Scanalyzed . | . . . . . Part Schematics Acquired . | . . . . . Parts Damaged . | . . . . . Bothacking | -11 -10 -10 -10 -9 ------------ Run | Yrd Mat Min Exi Min Used RIF Installer . | . . . . . Robots Hacked 4 | . . 1 3 . Non-combat 3 | . . 1 2 . Combat 1 | . . . 1 . Robot Hacks Applied 4 | . . 1 3 . parse_system 4 | . . 1 3 . Relay Couplers Released . | . . . . . Fabnet Peak Effective % . | . . . . . Robots Rewired . | . . . . . Allies Hacked . | . . . . . Hacks Repelled . | . . . . . Allies | -11 -10 -10 -10 -9 -------- Run | Yrd Mat Min Exi Min Total Allies 1 | . . 1 . . Largest Group 1 | . . 1 . . Highest-Rated Group 31 | . . 31 . . Highest-Rated Ally 31 | . . 31 . . Total Orders . | . . . . . Ally Attacks . | . . . . . Total Damage . | . . . . . Kills . | . . . . . Allies Corrupted . | . . . . . Allies Melted . | . . . . . Intel | -11 -10 -10 -10 -9 ------- Run | Yrd Mat Min Exi Min Active Infowar (turns) 1794 | 54 847 455 379 59 Terrain 1767 | 27 847 455 379 59 Structural 1054 | . 161 455 379 59 Seismic 503 | 54 449 . . . Machine Analysis 237 | . 237 . . . Cloaking 25 | . . . . 25 Robot Analysis Total 7 | . 7 . . . Derelict Logs Recovered 4 | . . 3 . 1 Drone Launches . | . . . . . Drone Recoveries . | . . . . . Exploration | -11 -10 -10 -10 -9 ------------- Run | Yrd Mat Min Exi Min Turns Passed 1836 | 96 847 455 379 59 Spaces Moved 2733 | 51 964 843 785 90 Core 7 | 6 1 . . . Treads 245 | 45 200 . . . Legs . | . . . . . Wheels . | . . . . . Hover . | . . . . . Flight 2481 | . 763 843 785 90 Fastest Speed 32 | 50 32 32 32 32 Average Speed 43 | 147 58 32 32 32 Slowest Speed 160 | 160 160 32 32 32 Overloaded Moves . | . . . . . Propulsion Burnouts . | . . . . . Robots Hopped 5 | . 2 2 . 1 Potential Cave-ins . | . . . . . Cave-ins Triggered . | . . . . . Exploration Rate (%) 62 | 4 94 98 94 20 Regions Visited 4 Branch Regions 3 Pre-discovered Areas 6 | . 4 2 . . Known Exits Taken 2 | . 1 1 . . Unknown Exits Taken 2 | 1 . . 1 . Scrap Searched 3 | . . 2 . 1 Spaces Dug . | . . . . . Terrain Destroyed 3 | . 3 . . . Melee . | . . . . . Projectile . | . . . . . AOE 3 | . 3 . . . Terrain Rammed . | . . . . . Walls Destroyed . | . . . . . Machines Disabled . | . . . . . Actions | -11 -10 -10 -10 -9 --------- Run | Yrd Mat Min Exi Min Total 3162 | 66 1140 942 910 104 Wait 197 | . 61 15 119 2 Move 2719 | 50 959 838 784 88 Hop 5 | . 2 2 . 1 Pick Up 23 | 6 11 4 1 1 Fast Attach 6 | 1 5 . . . Attach 12 | 6 3 2 . 1 Detach . | . . . . . Swap 11 | . 5 3 2 1 Drop 22 | . 15 5 1 1 Fire 128 | 3 63 53 . 9 Melee 4 | . . 1 3 . Ram . | . . . . . Kick . | . . . . . Crush 1 | . 1 . . . Escape Stasis . | . . . . . Rewire . | . . . . . Trap . | . . . . . Miscellaneous 34 | . 15 19 . . Route ------- -11/Scrapyard -10/Materials (discovered 6 exits: *Mat x3 / *Min x2 / Sub) -10/Mines (discovered 4 exits: *Mat x2 / *Exi / *Sub) -10/Exiles (discovered 2 exits: [*Min x2]) -9/Mines History --------- Turn | Location | Event 1 | -11/Scrapyard | Upgraded with Propulsion slot (x1) 1 | -11/Scrapyard | Upgraded with Utility slot (x1) 1 | -11/Scrapyard | Upgraded with Weapon slot (x1) 9 | -11/Scrapyard | Discovered new exit (range 15) 97 | -11/Scrapyard | Entered Materials 310 | -10/Materials | Build established: Hacker-Mutant 591 | -10/Materials | Discovered new exit (range 13) 593 | -10/Materials | Reached level 2 610 | -10/Materials | Identified exit to Mines 667 | -10/Materials | Central database locked down 677 | -10/Materials | Discovered new exit (range 16) 689 | -10/Materials | Learned location of 2 exits from Mines 733 | -10/Materials | Identified exit to Materials 734 | -10/Materials | Discovered new exit (range 13) 767 | -10/Materials | Learned 4 Recycling zone layouts 819 | -10/Materials | Learned Storage trap positions 820 | -10/Materials | Learned Storage stockpile data 824 | -10/Materials | Learned location of 1 exit from Recycling 842 | -10/Materials | Build established: Hacker-Scout 864 | -10/Materials | Identified exit to Subcaves 898 | -10/Materials | Learned location of Storage (-9) 944 | -10/Materials | Entered Mines 945 | -10/Mines | Identified exit to Exiles 1054 | -10/Mines | Discovered exit to Subcaves (range 13) 1057 | -10/Mines | Learned Materials terminal intel 1110 | -10/Mines | Reached level 3 1160 | -10/Mines | Destroyed 7 combat bots 1161 | -10/Mines | Discovered exit to Materials (range 11) 1191 | -10/Mines | Deemed a non-threat by the Exiles lab entrance 1274 | -10/Mines | A weapon hastily lodged in a ceiling crevice suddenly fell to the ground 1298 | -10/Mines | Received a Rocket Launcher from a helpful Derelict 1354 | -10/Mines | Received a Mining Laser from a helpful Derelict 1399 | -10/Mines | Entered Exiles 1404 | -10/Exiles | Discovered new exit (range 15) 1408 | -10/Exiles | Met 8R-AWN 1419 | -10/Exiles | Met EX-HEX 1428 | -10/Exiles | Met EX-BIN 1469 | -10/Exiles | Met EX-DEC 1484 | -10/Exiles | Visited The Gauntlet 1558 | -10/Exiles | Discovered new exit (range 10) 1585 | -10/Exiles | Aligned with FarCom system 1585 | -10/Exiles | Given EX-Vault access code 1592 | -10/Exiles | Opened EX-Vault 1601 | -10/Exiles | Found Cloak of Protection 1609 | -10/Exiles | Exiles lab attacked by MAIN.C 1778 | -10/Exiles | Left Exiles lab with Cloak of Protection 1778 | -10/Exiles | Entered Mines 1780 | -9/Mines | Reached level 4 1781 | -9/Mines | Upgraded with Utility slot (x1) 1817 | -9/Mines | Learned Materials garrison access intel 1820 | -9/Mines | Met a Derelict bent on vengeance 1837 | -9/Mines | Self-destructed Last Messages --------------- 01777_ 8R-AWN exits level. LOCATION=UNKNOWN GOAL=ESCAPE 01778_ Receiving FarCom transmissions... 01779_ GM-J5T destroyed. 01780_ Reached level 4. 01781_ Upgraded: Utility Slot (+1) 01781_ Upgraded: Mass Support (+5) 01795_ G-47 Trooper destroyed. 01795_ Switching to secondary target: G-34 Mercenary. 01800_ G-34 Mercenary destroyed. 01806_ Acquired Mak. Power Source. 01808_ Acquired 58 matter. 01817_ Acquired derelict log, extracted data. Data stored: Materials garrison access intel. 01817_ Dropped Lgt. Ion Engine. 01823_ Searching scrap... 01823_ Found Wheel. 01823_ Found Lgt. Ion Engine. 01823_ Found 53 Matter. Map ----- +----------------------------------------------------+ | ?????????????????????????????????????????????????? | | ?????????????????????????????????????????????????? | | ?????????????????????????????????????????????????? | | ?????????????????????????????????????????????????? | | ?????????????????????????????????????????????????? | | ?????????????????????????????????????????????????? | | ???????????????????????????????????????????? ????? | | ???????????????????????????????????##??? ? ????? | | ??????????????????????????????????### ??? #?? | | ????????????????????????????????##??? ??? ??? ?#?? | | ???????????????????????????????#?#?#?? ? ?????#?? | | ?????????????????????????????#???##? ?? ?##??#??## | | ????????????????????????????? ?##? ???###???#?### | | ????????????????????????????? #? ? ? ####??#???#? | | ???????????????????????????? ??? ????####?#??###? | | ???????????????????????#??### ? ? ?????##??#?### | | ???????????????? ????????????#? ? ??#?####?###?#?? | | ???????????????????????#?????## ##??#???########? | | ?????????????? ?????????#?#??#? ?####???????##?##? | | ?????????????????#???????####?#??##############??# | | ???????????????????#?????####?# ##############??# | | ?????????????????#??????? ?? ? ## %%!###?# | | ?????????????????????????#??####### """ =*=####? | | ????????????????#??????#####??##### """ % =%=##??# | | ??????????????????????#######????## """ = ! ###?? | | ??????????????????#??####@####?#?## """ ###?# | | ?????????????????????### ##??#### ###?# | | ?????????????????????## #####?########### ##??? | | ???????????????????#?## ################## ####? | | ???????????? ????##??## #############?#### ##### | | ??????????? ?##??????## ### #####?##### ##### | | ??????????????????#??## #####?#?## ##### | | ?????????????????????### ######?## ##### | | ??????????#??????????########## ######## ###?? | | ??????????????????????########## ###??## ##??# | | ????????????????????#######?##### ##?### ###?? | | ????????????????#??#########?##### ###### ####? | | ??????????????????#### ###?#?#### ###### ##??? | | ??????????????????### ###???### ###?## ###?# | | ???????????????????## ##??### ##?## ##??? | | ????????????????#??### ###### ##?## ###?# | | ????????????????????### ##### ###?## ##??? | | ?????????????????###### ####### ##??# | | ?????????????????##### ####?## ##??? | | ???????????????#### ###?#?## ###?# | | ?????????????????## #####???## ##??? | | ?????????????????## ## ########?##*####? | | ?????????????????## ####### ####?#????## ####? | | ?????????????????????######## #########???## ##?? | | ??????????????????#? ???##### ############### #### | +----------------------------------------------------+ Best States ------------- Heat Dissipation 43 Energy Generation 20 Energy Capacity 170 Matter Stores 300 Matter Capacity 300 Sight Range 17 Robot Scan Range 16 Terrain Scan Range 16 Terrain Scan Density 210 Cloak Strength 5 Resistance: KI 20 Resistance: TH 20 Resistance: EX 20 Resistance: EM 20 Resistance: I 20 Resistance: S 20 Resistance: P 20 Evasion (%) 63 Recoil Reduction 2 Offensive Hacking 25 Defensive Hacking 10 Item Schematics ----------------- None Robot Schematics ------------------ None Fabricated ------------ Nothing Repaired ---------- Nothing Alien Tech Used ----------------- None Achievements -------------- None Challenges ------------ None RPGLIKE | -11 -10 -10 -10 -9 --------- Run | Yrd Mat Min Exi Min Levels Raised 3 | . 1 1 . 1 XP Earned 9024 | 4000 1925 1850 350 899 XP Spent 8400 | 3990 1410 1600 . 1400 Upgrades 30 | 13 6 9 . 2 Propulsion Slot 1 | 1 . . . . Utility Slot 2 | 1 . . . 1 Weapon Slot 1 | 1 . . . . Heat Dissipation 3 | . 3 . . . Energy Generation 1 | 1 . . . . Mass Support 2 | 1 . . . 1 Inventory Capacity 2 | 2 . . . . Sight Range 1 | . 1 . . . Sensor Range 8 | . . 8 . . Terrain Scan Density 2 | 2 . . . . Ranged Accuracy 2 | 1 . 1 . . Hack Attack % 3 | 2 1 . . . Hack Defense % 2 | 1 1 . . . Protomatter Created 235 | . 105 130 . . Integrity Restored 698 | . 314 384 . . Core 652 | . 284 368 . . Parts 46 | . 30 16 . . Protomatter Decayed 49 | . . . 49 . Game ------ Seed HugeDerelictParser Manual? 0 Play Time 00:47:39 Cumulative 203.1 hours Start 2025.06.20 @ 12:15:36 End 2025.06.20 @ 13:26:26 Sessions 1 Manual Loads 0 Difficulty Adventurer Special Mode Winter2019/RPGLIKE Game No. 51 Rogue 12 Adventurer 8 Explorer 31 Win Type - Total 4 Types 2/0/2/0/0/0/0/0/0/0 Lore% 55 Gallery% 65 Achievement% 70 Wizard Run 0 Options --------- Layout 0 ASCII 0 Keyboard 0 Movement Mouse Keybinds 0 Fullscreen 2 Font 24/Smallcaps Map View 76x50 Zoom Use 0% Tactical HUD 1 Map Filters NONE Filters NONE Steam 1 RUN: afd6b580-3f09-4cf9-bceb-b2fb89a1e72a